fUST/lending_fUST_20250422
["ID","MTS","AMOUNT","RATE_DAILY","PERIOD"]
[358630572,1745320253025,-500.0,0.00023835,2]
[358630573,1745320253035,-500.0,0.00023835,2]
[358630574,1745320253045,-696.94,0.00023835,2]
[358630575,1745320253055,-500.0,0.00023835,2]
[358630576,1745320253065,-500.0,0.00023835,2]
[358630577,1745320253075,-500.0,0.00023835,2]
[358630578,1745320253086,-743.52,0.00023835,2]
[358630579,1745320253096,-500.0,0.00023835,2]
[358630580,1745320253106,-662.12,0.00023835,2]
[358630581,1745320253115,-500.0,0.00023835,2]
[358630582,1745320253125,-500.0,0.00023835,2]
[358630583,1745320253135,-500.0,0.00023835,2]
[358630584,1745320253145,-500.0,0.00023835,2]
[358630585,1745320253155,-500.0,0.00023835,2]
[358630586,1745320253166,-500.0,0.00023835,2]
[358630587,1745320253175,-500.0,0.00023835,2]
[358630588,1745320253186,-531.07,0.00023835,2]
[358630589,1745320253196,-505.87412306,0.00023835,2]
[358630590,1745320253206,-608.2,0.00023835,2]
[358630591,1745320253217,-777.38,0.00023835,2]
[358630592,1745320253227,-500.0,0.00023835,2]
[358630593,1745320253237,-500.0,0.00023835,2]
[358630594,1745320253247,-738.84,0.00023835,2]
[358630595,1745320253257,-177.15,0.00023835,2]
[358630596,1745320253268,-412.18666766,0.00023835,2]
[358630597,1745320253278,-500.0,0.00023835,2]
[358630598,1745320253288,-500.0,0.00023835,2]
[358630599,1745320253299,-714.48,0.00023835,2]
[358630600,1745320253309,-1155.95,0.00023835,2]
[358630601,1745320253319,-500.0,0.00023835,2]
[358630602,1745320253329,-500.0,0.00023835,2]
[358630603,1745320253340,-541.04,0.00023835,2]
[358630604,1745320253350,-344.84256069,0.00023835,2]
[358630605,1745320253360,-673.16,0.00023835,2]
[358630606,1745320253370,-500.0,0.00023835,2]
[358630607,1745320253379,-500.0,0.00023835,2]
[358630608,1745320253389,-500.0,0.00023835,2]
[358630609,1745320253399,-500.0,0.00023835,2]
[358630610,1745320253408,-500.0,0.00023835,2]
[358630611,1745320253418,-500.0,0.00023835,2]
[358630612,1745320253427,-1645.3,0.00023835,2]
[358630613,1745320253437,-621.47,0.00023835,2]
[358630614,1745320253447,-500.0,0.00023835,2]
[358630615,1745320253456,-3373.02,0.00023835,2]
[358630616,1745320253466,-500.0,0.00023835,2]
[358630617,1745320253478,-502.01,0.00023835,2]
[358630618,1745320253488,-500.0,0.00023835,2]
[358630619,1745320253498,-3520.95,0.00023835,2]
[358630620,1745320253508,-500.0,0.00023835,2]
[358630621,1745320253517,-500.0,0.00023835,2]
[358630622,1745320253527,-384.20423523,0.00023835,2]
[358630623,1745320253537,-500.0,0.00023835,2]
[358630624,1745320253546,-500.0,0.00023835,2]
[358630625,1745320253557,-641.02,0.00023835,2]
[358630626,1745320253570,-539.74,0.00023835,2]
[358630627,1745320253580,-500.0,0.00023835,2]
[358630628,1745320253590,-500.0,0.00023835,2]
[358630629,1745320253600,-11275.1,0.00023835,2]
[358630630,1745320253611,-677.42,0.00023835,2]
[358630631,1745320253621,-759.51,0.00023835,2]
[358630632,1745320253631,-500.0,0.00023835,2]
[358630633,1745320253646,-500.0,0.00023835,2]
[358630634,1745320253656,-500.0,0.00023835,2]
[358630635,1745320253666,-500.0,0.00023835,2]
[358630636,1745320253844,-500.0,0.00023835,2]
[358630637,1745320253855,-500.0,0.00023835,2]
[358630638,1745320253865,-195.28,0.00023835,2]
[358630639,1745320253874,-500.0,0.00023835,2]
[358630640,1745320253884,-192.31,0.00023835,2]
[358630641,1745320253894,-500.0,0.00023835,2]
[358630642,1745320253903,-500.0,0.00023835,2]
[358630643,1745320253914,-515.05,0.00023835,2]
[358630644,1745320253923,-1819.9,0.00023835,2]
[358630645,1745320253932,-500.0,0.00023835,2]
[358630646,1745320253942,-534.33,0.00023835,2]
[358630647,1745320253952,-3290.51,0.00023835,2]
[358630648,1745320253961,-635.6,0.00023835,2]
[358630649,1745320253972,-6254.96,0.00023835,2]
[358630650,1745320253983,-563.65,0.00023835,2]
[358630651,1745320253992,-707.61,0.00023835,2]
[358630652,1745320254002,-651.76,0.00023835,2]
[358630653,1745320254012,-1851.23,0.00023835,2]
[358630654,1745320254022,-936.86,0.00023835,2]
[358630655,1745320254032,-500.0,0.00023835,2]
[358630656,1745320254042,-632.84,0.00023835,2]
[358630657,1745320254052,-500.0,0.00023835,2]
[358630658,1745320254064,-500.0,0.00023835,2]
[358630659,1745320254074,-797.08,0.00023835,2]
[358630660,1745320254084,-2012.38,0.00023835,2]
[358630661,1745320254096,-633.17,0.00023835,2]
[358630662,1745320254106,-1199.8,0.00023835,2]
[358630663,1745320254117,-500.0,0.00023835,2]
[358630664,1745320254127,-4285.22,0.00023835,2]
[358630665,1745320254138,-753.84,0.00023835,2]
[358630666,1745320254148,-591.89,0.00023835,2]
[358630667,1745320254158,-19217.27503453,0.00023868,2]
[358630668,1745320254168,-162.22171093,0.000239,2]
[358630669,1745320254178,-237.72142115,0.00023952,2]
[358630670,1745320254188,-500.0,0.00024109,2]
[358630671,1745320254198,-500.0,0.00024109,2]
[358630672,1745320254208,-696.94,0.00024109,2]
[358630673,1745320254218,-530.6597646,0.00024109,2]
[358630674,1745320254228,-500.0,0.00024109,2]
[358630675,1745320254238,-500.0,0.00024109,2]
[358630676,1745320254248,-743.52,0.00024109,2]
[358630677,1745320254260,-500.0,0.00024109,2]
[358630678,1745320254270,-662.12,0.00024109,2]
[358630679,1745320254280,-608.54326349,0.00024109,2]
[358630680,1745320254290,-500.0,0.00024109,2]
[358630681,1745320254300,-500.0,0.00024109,2]
[358630682,1745320254310,-500.0,0.00024109,2]
[358630683,1745320254319,-500.0,0.00024109,2]
[358630684,1745320254329,-500.0,0.00024109,2]
[358630685,1745320254340,-531.07,0.00024109,2]
[358630686,1745320254350,-608.2,0.00024109,2]
[358630687,1745320254360,-777.38,0.00024109,2]
[358630688,1745320254371,-439.88509331,0.00024109,2]
[358630689,1745320254381,-151.0,0.00024109,7]
[358630690,1745320254391,-500.0,0.00024109,2]
[358630691,1745320254401,-738.84,0.00024109,2]
[358630692,1745320254411,-500.0,0.00024109,2]
[358630693,1745320254420,-714.48,0.00024109,2]
[358630694,1745320254431,-1155.95,0.00024109,2]
[358630695,1745320254441,-500.0,0.00024109,2]
[358630696,1745320254450,-673.16,0.00024109,2]
[358630697,1745320254460,-151.0,0.00024109,7]
[358630698,1745320254469,-500.0,0.00024109,2]
[358630699,1745320254479,-509.55677359,0.00024109,2]
[358630700,1745320254489,-500.0,0.00024109,2]
[358630701,1745320254500,-500.0,0.00024109,2]
[358630702,1745320254509,-500.0,0.00024109,2]
[358630703,1745320254519,-385.68042639,0.00024109,2]
[358630704,1745320254530,-1645.3,0.00024109,2]
[358630705,1745320254540,-621.47,0.00024109,2]
[358630706,1745320254550,-500.0,0.00024109,2]
[358630707,1745320254561,-3373.02,0.00024109,2]
[358630708,1745320254575,-151.0,0.00024109,7]
[358630709,1745320254585,-500.0,0.00024109,2]
[358630710,1745320254597,-502.01,0.00024109,2]
[358630711,1745320254607,-500.0,0.00024109,2]
[358630712,1745320254618,-3520.95,0.00024109,2]
[358630713,1745320254628,-500.0,0.00024109,2]
[358630714,1745320254638,-600.01,0.00024109,2]
[358630715,1745320254649,-500.0,0.00024109,2]
[358630716,1745320254659,-500.0,0.00024109,2]
[358630717,1745320254669,-641.02,0.00024109,2]
[358630718,1745320254678,-539.74,0.00024109,2]
[358630719,1745320254688,-500.0,0.00024109,2]
[358630720,1745320254698,-500.0,0.00024109,2]
[358630721,1745320254707,-3817.37579128,0.00024109,2]
[358630722,1745320255126,-500.0,0.00021917,2]
[358630723,1745320255136,-500.0,0.00021917,2]
[358630724,1745320255146,-500.0,0.00021917,2]
[358630725,1745320255157,-500.0,0.00021917,2]
[358630726,1745320255167,-500.0,0.00021917,2]
[358630727,1745320255177,-31.0,0.00021917,2]
[358630761,1745320664946,7937.77828907,0.0002001,2]
[358630762,1745320686279,2341.8,0.0002001,2]
[358630845,1745321330470,324.010049,0.0002,120]
[358630880,1745321431995,-2062.22171093,0.0002001,2]
[358630881,1745321432008,-906.931388,0.00021342,2]
[358630882,1745321432019,-321.0,0.00021816,2]
[358630883,1745321432029,-3055.07138524,0.00021817,2]
[358630884,1745321432038,-161.42759233,0.00021817,2]
[358630885,1745321432048,-300.0,0.00021899,2]
[358630886,1745321432058,-5086.69430434,0.000219,2]
[358630911,1745321438209,-5439.21960729,0.000219,2]
[358630912,1745321438221,-500.0,0.00021916,2]
[358630913,1745321438233,-500.0,0.00021916,2]
[358630914,1745321438243,-500.0,0.00021916,2]
[358630915,1745321438254,-95.45934495,0.00021916,2]
[358630916,1745321438267,-404.54065505,0.00021916,2]
[358630917,1745321438278,-500.0,0.00021916,2]
[358630918,1745321438288,-500.0,0.00021916,2]
[358630919,1745321438298,-382.99352674,0.00021916,2]
[358630920,1745321438308,-500.0,0.00021916,2]
[358630921,1745321438318,-410.3940219,0.00021916,2]
[358630922,1745321438328,-500.0,0.00021916,2]
[358630923,1745321438338,-500.0,0.00021916,2]
[358630924,1745321438348,-500.0,0.00021916,2]
[358630925,1745321438358,-500.0,0.00021916,2]
[358630926,1745321438368,-500.0,0.00021916,2]
[358630928,1745321438378,-500.0,0.00021916,2]
[358630931,1745321438387,-500.0,0.00021916,2]
[358630935,1745321438609,-500.0,0.00021916,2]
[358630936,1745321438620,-500.0,0.00021916,2]
[358630937,1745321438631,-500.0,0.00021916,2]
[358630938,1745321438642,-500.0,0.00021916,2]
[358630939,1745321438651,-500.0,0.00021917,2]
[358630940,1745321438661,-500.0,0.00021917,2]
[358630941,1745321438671,-500.0,0.00021917,2]
[358630942,1745321438681,-500.0,0.00021917,2]
[358630943,1745321438691,-547.01769651,0.00021917,2]
[358630944,1745321438700,-447.21144584,0.00021917,2]
[358630945,1745321438710,-502.2594155,0.00021917,2]
[358630946,1745321438719,-500.0,0.00021917,2]
[358630947,1745321438729,-500.0,0.00021917,2]
[358630948,1745321438739,-500.0,0.00021917,2]
[358630949,1745321438748,-500.0,0.00021917,2]
[358630950,1745321438758,-500.54663892,0.00021917,2]
[358630951,1745321438768,-500.0,0.00021917,2]
[358630952,1745321438778,-574.25948825,0.00021917,2]
[358630953,1745321438788,-502.82191151,0.00021917,2]
[358630954,1745321438798,-500.0,0.00021917,2]
[358630955,1745321438808,-500.0,0.00021917,2]
[358630956,1745321438818,-510.71071946,0.00021917,2]
[358630957,1745321438827,-500.0,0.00021917,2]
[358630958,1745321438838,-500.98956056,0.00021917,2]
[358630959,1745321438847,-500.0,0.00021917,2]
[358630960,1745321438857,-500.0,0.00021917,2]
[358630961,1745321438867,-500.0,0.00021917,2]
[358630962,1745321438876,-500.0,0.00021917,2]
[358630963,1745321438886,-500.0,0.00021917,2]
[358630964,1745321438896,-779.08,0.00021917,2]
[358630965,1745321438905,-500.0,0.00021917,2]
[358630966,1745321438915,-511.80561492,0.00021917,2]
[358630967,1745321438927,-500.0,0.00021917,2]
[358630968,1745321438942,-500.0,0.00021917,2]
[358630969,1745321438957,-500.0,0.00021917,2]
[358630970,1745321438967,-500.0,0.00021917,2]
[358630971,1745321438979,-500.0,0.00021917,2]
[358630972,1745321438990,-500.0,0.00021917,2]
[358630973,1745321439000,-500.0,0.00021917,2]
[358630974,1745321439011,-500.0,0.00021917,2]
[358630975,1745321439021,-500.0,0.00021917,2]
[358630976,1745321439031,-546.57177911,0.00021917,2]
[358630977,1745321439042,-500.0,0.00021917,2]
[358630978,1745321439053,-500.0,0.00021917,2]
[358630979,1745321439063,-500.0,0.00021917,2]
[358630980,1745321439072,-500.0,0.00021917,2]
[358630981,1745321439082,-500.0,0.00021917,2]
[358630982,1745321439091,-500.0,0.00021917,2]
[358630983,1745321439102,-500.0,0.00021917,2]
[358630984,1745321439112,-500.0,0.00021917,2]
[358630985,1745321439122,-504.12366263,0.00021917,2]
[358630986,1745321439132,-502.09964319,0.00021917,2]
[358630987,1745321439142,-500.0,0.00021917,2]
[358630988,1745321439152,-502.75279379,0.00021917,2]
[358630989,1745321439162,-513.11844049,0.00021917,2]
[358630990,1745321439172,-500.0,0.00021917,2]
[358630991,1745321439182,-500.0,0.00021917,2]
[358630992,1745321439193,-500.0,0.00021917,2]
[358630993,1745321439203,-500.38574003,0.00021917,2]
[358630994,1745321439213,-501.44029348,0.00021917,2]
[358630995,1745321439224,-500.0,0.00021917,2]
[358630996,1745321439233,-500.0,0.00021917,2]
[358630997,1745321439243,-500.65093928,0.00021917,2]
[358630998,1745321439254,-500.0,0.00021917,2]
[358630999,1745321439264,-500.0,0.00021917,2]
[358631000,1745321439274,-502.85630333,0.00021917,2]
[358631001,1745321439284,-541.53295048,0.00021917,2]
[358631002,1745321439295,-500.0,0.00021917,2]
[358631003,1745321439306,-500.0,0.00021917,2]
[358631004,1745321439316,-500.0,0.00021917,2]
[358631005,1745321439327,-500.0,0.00021917,2]
[358631006,1745321439337,-500.0,0.00021917,2]
[358631007,1745321439347,-500.0,0.00021917,2]
[358631008,1745321439359,-500.0,0.00021917,2]
[358631009,1745321439369,-500.0,0.00021917,2]
[358631010,1745321439379,-500.0,0.00021917,2]
[358631011,1745321439390,-500.0,0.00021917,2]
[358631012,1745321439401,-500.0,0.00021917,2]
[358631013,1745321439411,-500.0,0.00021917,2]
[358631014,1745321439422,-500.14583226,0.00021917,2]
[358631015,1745321439434,-500.0,0.00021917,2]
[358631016,1745321439445,-500.0,0.00021917,2]
[358631017,1745321439456,-501.53708838,0.00021917,2]
[358631018,1745321439466,-500.0,0.00021917,2]
[358631019,1745321439476,-500.0,0.00021917,2]
[358631020,1745321439486,-500.0,0.00021917,2]
[358631021,1745321439497,-500.0,0.00021917,2]
[358631022,1745321439507,-500.0,0.00021917,2]
[358631023,1745321439517,-500.0,0.00021917,2]
[358631024,1745321439527,-500.0,0.00021917,2]
[358631025,1745321439537,-500.0,0.00021917,2]
[358631026,1745321439551,-500.59206856,0.00021917,2]
[358631027,1745321439561,-500.0,0.00021917,2]
[358631028,1745321439574,-500.43082469,0.00021917,2]
[358631029,1745321439584,-500.71100963,0.00021917,2]
[358631030,1745321439594,-514.27,0.00021917,2]
[358631031,1745321439604,-505.62941426,0.00021917,2]
[358631032,1745321439616,-500.0,0.00021917,2]
[358631033,1745321439626,-500.0,0.00021917,2]
[358631035,1745321439638,-535.49989105,0.00021917,2]
[358631036,1745321439648,-502.16583751,0.00021917,2]
[358631037,1745321439657,-500.0,0.00021917,2]
[358631038,1745321439668,-500.0,0.00021917,2]
[358631039,1745321439679,-500.0,0.00021917,2]
[358631041,1745321439690,-500.0,0.00021917,2]
[358631042,1745321439700,-500.0,0.00021917,2]
[358631043,1745321439710,-500.0,0.00021917,2]
[358631044,1745321439720,-500.0,0.00021917,2]
[358631045,1745321439731,-504.0096716,0.00021917,2]
[358631046,1745321439741,-500.0,0.00021917,2]
[358631047,1745321439753,-1000.0,0.00021917,2]
[358631048,1745321439763,-182.39636618,0.00021917,2]
[358631049,1745321439773,-500.0,0.00021917,2]
[358631050,1745321439783,-500.0,0.00021917,2]
[358631051,1745321439794,-500.0,0.00021917,2]
[358631052,1745321439804,-500.0,0.00021917,2]
[358631053,1745321439814,-500.0,0.00021917,2]
[358631054,1745321439824,-500.0,0.00021917,2]
[358631055,1745321439834,-500.0,0.00021917,2]
[358631056,1745321439844,-500.0,0.00021917,2]
[358631057,1745321439854,-500.0,0.00021917,2]
[358631058,1745321439864,-500.0,0.00021917,2]
[358631059,1745321439874,-500.0,0.00021917,2]
[358631060,1745321439884,-500.0,0.00021917,2]
[358631061,1745321439894,-500.0,0.00021917,2]
[358631063,1745321439904,-500.0,0.00021917,2]
[358631065,1745321439914,-654.94,0.00021917,2]
[358631066,1745321439926,-500.0,0.00021917,2]
[358631067,1745321439939,-500.0,0.00021917,2]
[358631068,1745321439949,-500.0,0.00021917,2]
[358631070,1745321439959,-500.0,0.00021917,2]
[358631071,1745321439971,-500.0,0.00021917,2]
[358631072,1745321439982,-500.0,0.00021917,2]
[358631073,1745321439992,-500.0,0.00021917,2]
[358631074,1745321440003,-500.0,0.00021917,2]
[358631075,1745321440013,-500.0,0.00021917,2]
[358631076,1745321440023,-500.0,0.00021917,2]
[358631077,1745321440033,-500.0,0.00021917,2]
[358631078,1745321440043,-500.0,0.00021917,2]
[358631079,1745321440053,-582.61,0.00021917,2]
[358631080,1745321440062,-500.0,0.00021917,2]
[358631081,1745321440073,-500.0,0.00021917,2]
[358631082,1745321440086,-500.0,0.00021917,2]
[358631083,1745321440101,-501.43301874,0.00021917,2]
[358631084,1745321440116,-260.47010886,0.00021917,2]
[358631085,1745321440130,-500.0,0.00021917,2]
[358631086,1745321440141,-549.37,0.00021917,2]
[358631087,1745321440154,-500.0,0.00021917,2]
[358631088,1745321440167,-500.0,0.00021917,2]
[358631089,1745321440181,-500.0,0.00021917,2]
[358631090,1745321440194,-500.0,0.00021917,2]
[358631091,1745321440209,-501.14443384,0.00021917,2]
[358631092,1745321440222,-506.80313246,0.00021917,2]
[358631093,1745321440238,-500.0,0.00021917,2]
[358631094,1745321440251,-500.0,0.00021917,2]
[358631095,1745321440264,-503.14370427,0.00021917,2]
[358631096,1745321440276,-584.35,0.00021917,2]
[358631097,1745321440287,-500.0,0.00021917,2]
[358631098,1745321440298,-500.0,0.00021917,2]
[358631099,1745321440310,-741.98,0.00021917,2]
[358631100,1745321440324,-500.0,0.00021917,2]
[358631101,1745321440337,-500.0,0.00021917,2]
[358631102,1745321440350,-500.0,0.00021917,2]
[358631103,1745321440364,-500.0,0.00021917,2]
[358631104,1745321440377,-504.62886213,0.00021917,2]
[358631105,1745321440390,-500.0,0.00021917,2]
[358631106,1745321440403,-500.0,0.00021917,2]
[358631107,1745321440417,-677.27,0.00021917,2]
[358631108,1745321440430,-500.0,0.00021917,2]
[358631109,1745321440442,-500.0,0.00021917,2]
[358631110,1745321440469,-500.0,0.00021917,2]
[358631111,1745321440487,-500.0,0.00021917,2]
[358631112,1745321440504,-1107.78,0.00021917,2]
[358631113,1745321440523,-500.0,0.00021917,2]
[358631114,1745321440539,-500.0,0.00021917,2]
[358631115,1745321440554,-500.0,0.00021917,2]
[358631116,1745321440568,-500.0,0.00021917,2]
[358631117,1745321440582,-500.0,0.00021917,2]
[358631118,1745321440597,-500.0,0.00021917,2]
[358631119,1745321440612,-500.0,0.00021917,2]
[358631120,1745321440628,-503.31382095,0.00021917,2]
[358631121,1745321440648,-500.0,0.00021917,2]
[358631122,1745321440663,-500.0,0.00021917,2]
[358631123,1745321440678,-500.0,0.00021917,2]
[358631124,1745321440690,-510.65501489,0.00021917,2]
[358631125,1745321440702,-500.0,0.00021917,2]
[358631126,1745321440715,-500.0,0.00021917,2]
[358631127,1745321440728,-500.0,0.00021917,2]
[358631128,1745321440743,-500.0,0.00021917,2]
[358631129,1745321440759,-500.0,0.00021917,2]
[358631130,1745321440770,-500.0,0.00021917,2]
[358631131,1745321440781,-645.11,0.00021917,2]
[358631132,1745321440793,-500.0,0.00021917,2]
[358631133,1745321440804,-500.0,0.00021917,2]
[358631134,1745321440817,-228.29434969,0.00021917,2]
[358631135,1745321440830,-500.0,0.00021917,2]
[358631136,1745321440844,-500.0,0.00021917,2]
[358631137,1745321440855,-1576.74,0.00021917,2]
[358631138,1745321440867,-501.05278398,0.00021917,2]
[358631139,1745321440878,-500.0,0.00021917,2]
[358631140,1745321440891,-519.34569193,0.00021917,2]
[358631141,1745321440904,-500.0,0.00021917,2]
[358631142,1745321440917,-500.0,0.00021917,2]
[358631143,1745321440935,-500.0,0.00021917,2]
[358631144,1745321440948,-500.0,0.00021917,2]
[358631145,1745321440961,-500.0,0.00021917,2]
[358631146,1745321440975,-500.0,0.00021917,2]
[358631147,1745321440990,-500.0,0.00021917,2]
[358631148,1745321441003,-500.0,0.00021917,2]
[358631149,1745321441022,-500.0,0.00021917,2]
[358631150,1745321441042,-500.0,0.00021917,2]
[358631151,1745321441056,-500.0,0.00021917,2]
[358631152,1745321441070,-500.0,0.00021917,2]
[358631153,1745321441084,-500.0,0.00021917,2]
[358631154,1745321441097,-500.0,0.00021917,2]
[358631155,1745321441112,-500.0,0.00021917,2]
[358631156,1745321441125,-500.0,0.00021917,2]
[358631157,1745321441140,-500.0,0.00021917,2]
[358631158,1745321441154,-500.0,0.00021917,2]
[358631159,1745321441168,-595.57,0.00021917,2]
[358631160,1745321441181,-500.0,0.00021917,2]
[358631161,1745321441194,-500.0,0.00021917,2]
[358631162,1745321441208,-500.0,0.00021917,2]
[358631163,1745321441221,-500.0,0.00021917,2]
[358631164,1745321441233,-500.0,0.00021917,2]
[358631165,1745321441246,-500.0,0.00021917,2]
[358631166,1745321441259,-500.0,0.00021917,2]
[358631167,1745321441272,-500.0,0.00021917,2]
[358631168,1745321441284,-500.0,0.00021917,2]
[358631169,1745321441297,-500.0,0.00021917,2]
[358631170,1745321441310,-3374.24,0.00021917,2]
[358631171,1745321441322,-500.0,0.00021917,2]
[358631172,1745321441336,-3232.48,0.00021917,2]
[358631173,1745321441348,-500.0,0.00021917,2]
[358631174,1745321441361,-500.0,0.00021917,2]
[358631175,1745321441374,-500.73143921,0.00021917,2]
[358631176,1745321441385,-500.0,0.00021917,2]
[358631177,1745321441397,-500.0,0.00021917,2]
[358631178,1745321441410,-500.0,0.00021917,2]
[358631179,1745321441422,-500.0,0.00021917,2]
[358631180,1745321441435,-500.0,0.00021917,2]
[358631181,1745321441447,-501.59604915,0.00021917,2]
[358631182,1745321441460,-500.0,0.00021917,2]
[358631183,1745321441472,-500.0,0.00021917,2]
[358631184,1745321441484,-500.0,0.00021917,2]
[358631185,1745321441497,-500.0,0.00021917,2]
[358631186,1745321441511,-500.0,0.00021917,2]
[358631187,1745321441524,-500.0,0.00021917,2]
[358631188,1745321441536,-180.49716584,0.00021917,2]
[358631189,1745321441549,-614.31,0.00021917,2]
[358631190,1745321441561,-500.0,0.00021917,2]
[358631191,1745321441574,-500.0,0.00021917,2]
[358631192,1745321441587,-500.0,0.00021917,2]
[358631193,1745321441600,-500.0,0.00021917,2]
[358631194,1745321441612,-500.0,0.00021917,2]
[358631195,1745321441626,-500.0,0.00021917,2]
[358631196,1745321441638,-500.0,0.00021917,2]
[358631197,1745321441650,-500.97715698,0.00021917,2]
[358631198,1745321441663,-500.0,0.00021917,2]
[358631199,1745321441676,-500.0,0.00021917,2]
[358631200,1745321441690,-500.0,0.00021917,2]
[358631201,1745321441704,-260.82011822,0.00021917,2]
[358631202,1745321441717,-500.0,0.00021917,2]
[358631203,1745321441729,-500.0,0.00021917,2]
[358631204,1745321441742,-500.98265572,0.00021917,2]
[358631205,1745321441754,-500.0,0.00021917,2]
[358631206,1745321441767,-424.38447612,0.00021917,2]
[358631207,1745321441780,-500.0,0.00021917,2]
[358631208,1745321441792,-500.0,0.00021917,2]
[358631209,1745321441806,-517.25,0.00021917,2]
[358631210,1745321441818,-500.0,0.00021917,2]
[358631211,1745321441829,-10805.31,0.00021917,2]
[358631212,1745321441839,-503.84499358,0.00021917,2]
[358631213,1745321441851,-500.0,0.00021917,2]
[358631214,1745321441862,-711.38,0.00021917,2]
[358631215,1745321441872,-500.0,0.00021917,2]
[358631216,1745321442095,-500.0,0.00021917,2]
[358631217,1745321442111,-500.50826648,0.00021917,2]
[358631218,1745321442122,-500.0,0.00021917,2]
[358631219,1745321442133,-649.19,0.00021917,2]
[358631220,1745321442143,-500.0,0.00021917,2]
[358631221,1745321442153,-287.67397708,0.00021917,2]
[358631222,1745321442163,-514.37271961,0.00021917,2]
[358631223,1745321442175,-500.0,0.00021917,2]
[358631224,1745321442185,-727.87,0.00021917,2]
[358631225,1745321442195,-500.0,0.00021917,2]
[358631226,1745321442207,-500.0,0.00021917,2]
[358631227,1745321442216,-500.0,0.00021917,2]
[358631228,1745321442226,-500.0,0.00021917,2]
[358631229,1745321442236,-500.0,0.00021917,2]
[358631230,1745321442246,-500.0,0.00021917,2]
[358631231,1745321442255,-501.6392945,0.00021917,2]
[358631232,1745321442264,-502.71449283,0.00021917,2]
[358631233,1745321442274,-500.0,0.00021917,2]
[358631234,1745321442284,-502.40067337,0.00021917,2]
[358631235,1745321442294,-500.0,0.00021917,2]
[358631236,1745321442305,-500.0,0.00021917,2]
[358631237,1745321442315,-500.0,0.00021917,2]
[358631238,1745321442325,-500.0,0.00021917,2]
[358631239,1745321442335,-501.15513965,0.00021917,2]
[358631240,1745321442346,-500.0,0.00021917,2]
[358631241,1745321442355,-500.0,0.00021917,2]
[358631242,1745321442366,-500.0,0.00021917,2]
[358631243,1745321442376,-500.0,0.00021917,2]
[358631244,1745321442386,-500.0,0.00021917,2]
[358631245,1745321442396,-500.0,0.00021917,2]
[358631246,1745321442406,-500.0,0.00021917,2]
[358631247,1745321442417,-500.0,0.00021917,2]
[358631248,1745321442427,-500.0,0.00021917,2]
[358631249,1745321442436,-500.0,0.00021917,2]
[358631250,1745321442446,-500.0,0.00021917,2]
[358631251,1745321442456,-500.0,0.00021917,2]
[358631252,1745321442466,-500.0,0.00021917,2]
[358631253,1745321442476,-500.0,0.00021917,2]
[358631254,1745321442486,-500.0,0.00021917,2]
[358631255,1745321442496,-500.0,0.00021917,2]